Workbook

Sheet 2501 - 2.22 (hidden)
A1: 2501 | C1: =CONCATENATE("PFA ",Y2) -> PFA 31.1.22 | K1: =CONCATENATE("PFA ",Y4) -> PFA 28.2.22 | Y1: dates
C2: Réalisé N-1 | D2: Réalisé N | E2: Nb heures RAF | F2: MO K€ RAF | G2: HA K€ RAF | H2: Provisions | I2: PFA TOTAL | K2: Réalisé N-1 | L2: Réalisé N | M2: Nb heures RAF | N2: MO K€ RAF | O2: HA K€ RAF | P2: Provisions | Q2: PFA TOTAL | S2: Budget inital | T2: écart budget | Y2: 31.1.22
B4: P | C4: 463 | D4: 0 | G4: 5 | I4: =+C4+D4+F4+G4+H4 -> 468 | K4: =C4 -> 463 | L4: 0 | O4: 5 | Q4: =+K4+L4+N4+O4+P4 -> 468 | R4: =Q4-I4 -> 0 | S4: 567 | T4: =+Q4-S4 -> -99 | Y4: 28.2.22
B5: DEV | C5: 43 | D5: 77 | E5: 53653 | F5: 5720 | G5: 2095 | H5: 1000 | I5: =+C5+D5+F5+G5+H5 -> 8935 | K5: =C5 -> 43 | L5: 194.65 | M5: =47897+4610 -> 52507 | N5: 5599 | O5: =875+1107+75+53 -> 2110 | P5: 1000 | Q5: =+K5+L5+N5+O5+P5 -> 8946.65 | R5: =Q5-I5 -> 11.65 | S5: 8938 | T5: =+Q5-S5 -> 8.65
C8: Heures théoriques consommées | D8: =CONCATENATE("Heures réalisées entre le ",Y2," et le ",Y4) -> Heures réalisées entre le 31.1.22 et le 28.2.22 | E8: Ecart à justifier | I8: HA théoriques consommés | J8: =CONCATENATE("HA réalisés entre le ",Y2," et le ",Y4) -> HA réalisés entre le 31.1.22 et le 28.2.22 | K8: Ecart à justifier | N8: Ecart Provisions
C11: =+E4-M4 -> 0 | D11: 0 | E11: =+D11-C11 -> 0 | F11: hrs | G11: 1/ | I11: =G4-O4 -> 0 | J11: 0 | K11: =+J11-I11 -> 0 | L11: K€ | M11: 1/ | N11: =P4-H4 -> 0 | O11: K€ | Q11: =E11*0.108+K11+N11 -> 0
C12: =+E5-M5 -> 1146 | D12: =1764.8-714.6 -> 1050.2 | E12: =+D12-C12 -> -95.8 | F12: hrs | G12: 1/ | I12: =G5-O5 -> -15 | J12: 4 | K12: =+J12-I12 -> 19 | L12: K€ | M12: 1/ | N12: =P5-H5 -> 0 | O12: K€ | Q12: =E12*0.108+K12+N12 -> 8.6536
B17: Variation PFA : | D17: =+R4+R5 -> 11.65 | E17: k€
B18: Préfinancement avant démarrage du contrat STM MHT -> travaux finis
B19: Notification du développement du contrat STM MHT en décembre 2021
I21: Réalisé | J21: En k€ | K21: En h | L21: En HA
B22: Réalisé
J23: =+K23*0.108 -> 0
J24: =+K24*0.108 -> 0 | N24: *Refaire le point des devis métier prévu fin mars pour la partie Electronique et Mécanique - Logiciel sur avril
J25: =+K25*0.108 -> 0
J26: =+K26*0.108 -> 0 | N26: *Plan de charge Ok sur 3prochains mois - besoin de presta pour prendre en charge 1 carte (en même temps)
I28: RAF | J28: En k€ | K28: En h | L28: En HA | N28: *Frais Maitre Barbaut non inclus dans PFA +5 à 10k€
B29: RAF
O32: =IF(STDEV(+L34,K12+K13)<1,"OK Justif HA","Ecart") -> Ecart
B33: *Refaire le point des devis métier prévu fin mars pour la partie Electronique et Mécanique - Logiciel sur avril | O33: =IF(STDEV(K34,E12+E11)<20,"OK Justif Heures","Ecart") -> Ecart
I34: TOTAL | J34: =SUM(J22:J33) -> 0 | K34: =+K23+K25+K31+K30+K26 -> 0 | L34: =SUM(L22:L33) -> 0
B35: *Plan de charge Ok sur 3prochains mois - besoin de presta pour prendre en charge 1 carte (en même temps)
B36: *Frais Maitre Barbaut non inclus dans PFA +5 à 10k€ | K36: Variation PFA | M36: =+J34+L34 -> 0
B39: Risques
K40: =C1 -> PFA 31.1.22 | L40: Variation | M40: =+K1 -> PFA 28.2.22 | P40: Risque ajouté
C41: * Séminaire Risque prévu fin mars | J41: Stabilité des données d’interface avec lanceur | K41: 150 | M41: =+K41+L41 -> 150 | P41: Risque modifié
C42: Chiffrage des nouveaux risques et voir la concordance avec ceux existants | J42: Retard sur programme Lanceur | K42: 150 | M42: =+K42+L42 -> 150 | P42: Risque inchangé
J43: Pb en qualification en environnement | K43: 150 | M43: 150
J44: Méconnaissance de l’environnement aéro | K44: 150 | M44: 150
J45: EN 9100 | K45: 100 | M45: 100
J46: SLI / AMDEC | K46: 100 | M46: 100
J47: Evolutions suite GT Training | K47: 100 | M47: 100 | O47: =IF(STDEV(L51,N12)<1,"OK Justif Prov","Ecart") -> OK Justif Prov
J48: Outil de 3A | K48: 200 | M48: 200
J49: BDD terrain | K49: 100 | M49: 100
J50: Opportunité - 1 lot de fabrication | K50: -200 | M50: -200
K51: =SUM(K41:K50) -> 1000 | L51: =SUM(L41:L50) -> 0 | M51: 1000

Sheet Par OE (hidden)
A1: 2501
C3: Quantité Heures | D3: PFA 31.1.2022 | H3: PFA 28.2.2022
C4: Budget | G4: Ecart | K4: Ecart | L4: Ecart
D5: Réalisé | E5: RAF | F5: Total PFA | G5: Budget | H5: Réalisé | I5: RAF | J5: Total PFA | K5: Budget | L5: PFA M-1
C6: =SUM(C7:C17) -> 4142 | D6: =SUM(D7:D17) -> 549.6 | E6: =SUM(E7:E17) -> 3520 | F6: =+D6+E6 -> 4069.6 | G6: =F6-C6 -> -72.4 | H6: =SUM(H7:H17) -> 821.3 | I6: =SUM(I7:I17) -> 2443 | J6: =+H6+I6 -> 3264.3 | K6: =J6-C6 -> -877.7 | L6: =J6-F6 -> -805.3
A7: 25011CONP | B7: ETE | C7: 555 | D7: 59.6 | E7: 420 | F7: =+D7+E7 -> 479.6 | G7: =F7-C7 -> -75.4 | H7: 58.6 | I7: 430 | J7: =+H7+I7 -> 488.6 | K7: =J7-C7 -> -66.4 | L7: =J7-F7 -> 9
A8: 25011CONP | B8: ETL | C8: 1340 | D8: 275.6 | E8: 1630 | F8: =+D8+E8 -> 1905.6 | G8: 565.6 | H8: 355.8 | I8: 980 | J8: 1335.8 | K8: -4.2 | L8: -569.8
A9: 25011CONP | B9: ETM | C9: 546 | D9: 96.2 | E9: 606 | F9: 702.2 | G9: 156.2 | H9: 230.9 | I9: 465 | J9: 695.9 | K9: 149.9 | L9: -6.3
A10: 25011CONP | B10: EXP | C10: 311 | D10: 4.2 | E10: 320 | F10: 324.2 | G10: 13.2 | H10: 16.8 | I10: 275 | J10: 291.8 | K10: -19.2 | L10: -32.4
A11: 25011CONP | B11: GDC | C11: 220 | G11: -220 | K11: -220 | L11: 0
A12: 25011CONP | B12: PGE | C12: 210 | G12: -210 | K12: -210 | L12: 0
A13: 25011CONP | B13: RTA | C13: 700 | D13: 114 | E13: 514 | F13: 628 | G13: -72 | H13: 152 | I13: 263 | J13: 415 | K13: -285 | L13: -213
A14: 25011CONP | B14: QMC | C14: 80 | G14: -80 | K14: -80 | L14: 0
A15: 25011CONP | B15: PGI | C15: 20 | E15: 30 | F15: 30 | G15: 10 | H15: 5.6 | I15: 30 | J15: 35.6 | K15: 15.6 | L15: 5.6
A16: 25011CONP | B16: QPG | C16: 160 | G16: -160 | K16: -160 | L16: 0
A17: 25011CONP | B17: SRX | C17: 0 | E17: 0 | F17: 0 | G17: 0 | H17: 1.6 | I17: 0 | J17: 1.6 | K17: 1.6 | L17: 1.6
D18: =+D19 -> 3 | F18: 3 | G18: 3 | H18: 9.1 | J18: 9.1 | K18: 9.1 | L18: 6.1
A19: 25015INDS | B19: ETE | C19: 700 | D19: 3 | F19: 3 | G19: -697 | H19: 9.1 | J19: 9.1 | K19: -690.9 | L19: 6.1
A20: 2501DMNGT | D20: 162 | F20: 162 | G20: 162 | H20: 176.2 | J20: 176.2 | K20: 176.2 | L20: 14.2
A21: PGE | C21: 6000 | D21: 99.2 | F21: 99.2 | G21: -5900.8 | H21: 119.6 | J21: 119.6 | K21: -5880.4 | L21: 20.4
A22: QPG | C22: 2400 | D22: 62.8 | F22: 62.8 | G22: -2337.2 | H22: 56.6 | J22: 56.6 | K22: -2343.4 | L22: -6.2
A23: 25012COND | F23: 0 | G23: 0 | H23: 43.6 | J23: 43.6 | K23: 43.6 | L23: 43.6
A24: ETL | C24: 3946 | F24: 0 | G24: -3946 | H24: 43.6 | J24: 43.6 | K24: -3902.4 | L24: 43.6
A25: Total général | D25: =D6+D18+D20 -> 714.6 | E25: =SUM(E6,E18,E20,E23) -> 3520 | F25: 4234.6 | G25: 4234.6 | H25: 1050.2 | J25: 1050.2 | K25: 1050.2 | L25: -3184.4
C26: K€
A27: 25011CONP
A28: Total H VAL
A29: ACHATS
A30: SOUS TRAITANCE
A31: FRAIS
A32: ENGAGES
A33: Provisions
A34: TOTAL PFA

Sheet Par OGE (hidden)
A1: 2501
D5: PFA 31.1.2022 | H5: PFA 28.2.2022
B6: Budget | C6: Réalisé N-1 | G6: Ecart | K6: Ecart | L6: Ecart
D7: Réalisé | E7: RAF | F7: Total PFA | G7: Budget | H7: Réalisé | I7: RAF | J7: Total PFA | K7: Budget | L7: PFA M-1
A8: MO (heures en k€] | B8: 5864 | C8: 43 | D8: 77 | E8: 5720 | F8: =SUM(C8:E8) -> 5840 | G8: =+F8-B8 -> -24 | H8: 190 | I8: 5599 | J8: =SUM(H8:I8)+$C$8 -> 5832 | K8: =+J8-B8 -> -32 | L8: =J8-F8 -> -8
A9: ACHATS | B9: 1864.8 | C9: 0 | E9: 875 | F9: =SUM(C9:E9) -> 875 | G9: =+F9-B9 -> -989.8 | I9: 875 | J9: =SUM(H9:I9) -> 875 | K9: =+J9-B9 -> -989.8 | L9: =J9-F9 -> 0
A10: SOUS TRAITANCE | B10: 156.22 | C10: 0 | E10: 1137 | F10: 1137 | G10: 980.78 | H10: 4.181 | I10: 1101 | J10: =SUM(H10:I10) -> 1105.181 | K10: 948.961 | L10: -31.819
A11: FRAIS | B11: 75 | C11: 0 | E11: 75 | F11: 75 | G11: 0 | I11: 75 | J11: 75 | K11: 0 | L11: 0
A12: ENGAGES | C12: 0 | E12: 8 | F12: 8 | G12: 8 | I12: 50 | J12: 50 | K12: 50 | L12: 42
A13: Provisions | B13: 1000 | C13: 0 | E13: 1000 | F13: 1000 | G13: =F13-B13 -> 0 | I13: 1000 | J13: 1000 | K13: 0 | L13: 0
A14: TOTAL PFA | B14: =SUM(B8:B13) -> 8960.02 | F14: =SUM(F8:F13) -> 8935 | G14: -25.02 | J14: =SUM(J8:J13) -> 8937.181 | K14: =+J14-B14 -> -22.839 | L14: =J14-F14 -> 2.181
D16: PFA 31.1.2022 | H16: PFA 28.2.2022
G17: Ecart | K17: Ecart | L17: Ecart
A18: Quantité Heures | D18: Réalisé | E18: RAF | F18: Total PFA | G18: Budget | H18: Réalisé | I18: RAF | J18: Total PFA | K18: Budget | L18: PFA M-1
A19: ETE | B19: 555 | D19: 59.6 | E19: 420 | F19: =+D19+E19 -> 479.6 | G19: =F19-B19 -> -75.4 | H19: 58.6 | I19: 430 | J19: =+H19+I19 -> 488.6 | K19: =J19-B19 -> -66.4 | L19: =J19-F19 -> 9
A20: ETL | B20: 1340 | D20: 275.6 | E20: 1630 | F20: =+D20+E20 -> 1905.6 | G20: 565.6 | H20: 355.8 | I20: 980 | J20: 1335.8 | K20: -4.2 | L20: =J20-F20 -> -569.8
A21: ETM | B21: 546 | D21: 96.2 | E21: 606 | F21: 702.2 | G21: 156.2 | H21: 230.9 | I21: 465 | J21: 695.9 | K21: 149.9 | L21: -6.3
A22: EXP | B22: 311 | D22: 4.2 | E22: 320 | F22: 324.2 | G22: 13.2 | H22: 16.8 | I22: 275 | J22: 291.8 | K22: -19.2 | L22: -32.4
A23: GDC | B23: 220 | G23: -220 | K23: -220 | L23: 0
A24: PGE | B24: 210 | G24: -210 | K24: -210 | L24: 0
A25: RTA | B25: 700 | D25: 114 | E25: 514 | F25: 628 | G25: -72 | H25: 152 | I25: 263 | J25: 415 | K25: -285 | L25: -213
A26: QMC | B26: 80 | G26: -80 | K26: -80 | L26: 0
A27: PGI | B27: 20 | E27: 30 | F27: 30 | G27: 10 | H27: 5.6 | I27: 30 | J27: 35.6 | K27: 15.6 | L27: 5.6
A28: QPG | B28: 160 | G28: -160 | K28: -160 | L28: 0
A29: SRX | B29: 0 | E29: 0 | F29: 0 | G29: 0 | H29: 1.6 | I29: 0 | J29: 1.6 | K29: 1.6 | L29: 1.6
A30: Total Heures | D30: =SUM(D19:D29) -> 549.6 | E30: =SUM(E19:E29) -> 3520 | F30: 4069.6 | G30: -72.4 | H30: 821.3 | I30: 2443 | J30: 3264.3 | K30: -877.7 | L30: -805.3
A34: Commentaires

Sheet Synthèse
A1: =LEFT(__bookmark_3,6) -> 2200A1
D5: ='PASA N'!$D$4 -> PFA 202201
B6: Budget | C6: Réalisé N-1 | J6: Ecart
D7: Réalisé | E7: RAF | F7: Total PFA | G7: Réalisé | H7: RAF | I7: Total PFA | J7: PFA M-1
A8: Heures | B8: ='PASA N'!U61 -> 2815.76995 | C8: ='PASA N'!$AA$56 -> 4040.4 | D8: 1106 | F8: =SUM(D8:E8) -> 1106 | H8: ='PASA N'!$AC$31+'PASA N'!$BE$31 -> 3371.03
A9: MO (heures en k€] | B9: ='PASA N'!O61 -> 495.15595 | C9: ='PASA N'!$AD$56 -> 258.853 | D9: 364 | F9: =SUM(C9:E9) -> 622.853 | H9: ='PASA N'!$BI$31 -> 258.48907 | I9: =SUM(G9:H9)+$C$9 -> 517.34207 | J9: =I9-F9 -> -105.51093
A10: ACHATS | B10: ='PASA N'!R56 -> 2156.214 | C10: ='PASA N'!$AH$56 -> 415.34318 | F10: =SUM(C10:E10) -> 415.34318 | H10: =SUM('PASA N'!$BL$31:$BW$31) -> 1149.60865 | I10: =SUM(G10:H10) -> 1149.60865 | J10: =I10-F10 -> 734.26547
A11: Risques - Provisions | B11: ='PASA N'!R60 -> 164.4 | C11: ='PASA N'!$AH$60 -> 0 | F11: 0 | H11: =SUM('PASA N'!$BL$35:$BW$35) -> 164.4 | I11: =SUM(G11:H11) -> 164.4 | J11: =I11-F11 -> 164.4
A12: TOTAL PFA | B12: =SUM(B9:B11) -> 2815.76995 | F12: =SUM(F9:F11) -> 1038.19618 | I12: =SUM(I9:I11) -> 1831.35072 | J12: =I12-F12 -> 793.15454

Sheet Détail des heures (hidden)
D5: PFA 31.1.2022 | G5: PFA 28.2.2022
J6: Ecart
A7: Quantité Heures | D7: Réalisé | E7: RAF | F7: Total PFA | G7: Réalisé | H7: RAF | I7: Total PFA | J7: PFA M-1
A8: ETE | B8: 555 | D8: 59.6 | E8: 420 | F8: =+D8+E8 -> 479.6 | G8: 58.6 | H8: 430 | I8: =+G8+H8 -> 488.6 | J8: =I8-F8 -> 9
A9: ETL | B9: 1340 | D9: 275.6 | E9: 1630 | F9: =+D9+E9 -> 1905.6 | G9: 355.8 | H9: 980 | I9: 1335.8 | J9: -569.8
A10: ETM | B10: 546 | D10: 96.2 | E10: 606 | F10: 702.2 | G10: 230.9 | H10: 465 | I10: 695.9 | J10: -6.3
A11: EXP | B11: 311 | D11: 4.2 | E11: 320 | F11: 324.2 | G11: 16.8 | H11: 275 | I11: 291.8 | J11: -32.4
A12: GDC | B12: 220 | J12: 0
A13: PGE | B13: 210 | J13: 0
A14: RTA | B14: 700 | D14: 114 | E14: 514 | F14: 628 | G14: 152 | H14: 263 | I14: 415 | J14: -213
A15: QMC | B15: 80 | J15: 0
A16: PGI | B16: 20 | E16: 30 | F16: 30 | G16: 5.6 | H16: 30 | I16: 35.6 | J16: 5.6
A17: QPG | B17: 160 | J17: 0
A18: SRX | B18: 0 | E18: 0 | F18: 0 | G18: 1.6 | H18: 0 | I18: 1.6 | J18: 1.6
A19: Total Heures | D19: =SUM(D8:D18) -> 549.6 | E19: =SUM(E8:E18) -> 3520 | F19: 4069.6 | G19: 821.3 | H19: 2443 | I19: 3264.3 | J19: =SUM(J8:J18) -> -805.3

Sheet Détails des achats (hidden)
D4: PFA 31.1.2022 | G4: PFA 28.2.2022
B5: Budget | C5: Réalisé N-1 | J5: Ecart
D6: Réalisé | E6: RAF | F6: Total PFA | G6: Réalisé | H6: RAF | I6: Total PFA | J6: PFA M-1
A7: ACHATS | B7: 1864.8 | C7: 0 | E7: 875 | F7: =SUM(C7:E7) -> 875 | H7: 875 | I7: =SUM(G7:H7) -> 875 | J7: =I7-F7 -> 0
A8: SOUS TRAITANCE | B8: 156.22 | C8: 0 | E8: 1137 | F8: 1137 | G8: 4.181 | H8: 1101 | I8: =SUM(G8:H8) -> 1105.181 | J8: =I8-F8 -> -31.819
A9: FRAIS | B9: 75 | C9: 0 | E9: 75 | F9: 75 | H9: 75 | I9: 75 | J9: =I9-F9 -> 0
A10: ENGAGES | C10: 0 | E10: 8 | F10: 8 | H10: 50 | I10: 50 | J10: =I10-F10 -> 42

Sheet Détail des risques (hidden)
A6: Provisions | D6: Budget | E6: PFA 31.1.2022 | F6: PFA 28.2.22 | G6: Ecart
A7: 25011RISK | B7: Risques STM MHT : Conception préliminaire | D7: 100 | E7: 100 | F7: 100 | G7: =+F7-E7 -> 0
A8: 25012RISK | B8: Risques STM MHT : Conception détaillé | D8: 150 | E8: 150 | F8: 150 | G8: =+F8-E8 -> 0
A9: 25013RISK | B9: Risques STM MHT : Achats | D9: 450 | E9: 450 | F9: 450 | G9: 0
A10: 25014RISK | B10: Risques STM MHT : Qualification | D10: 300 | E10: 300 | F10: 300 | G10: 0
D11: 1000 | E11: 1000 | F11: 1000 | G11: 0

Sheet PASA N
A1: PFA : | B1: 2200A1 : MCO REGROUPEMENT - ANNEE1 | D1: Synthèse
A2: du : | B2: 2022-02-28
D4: PFA 202201 | J4: PFA du 28/2/2022 | S4: Ecart
B5: Reste à faire hors provisions : | D5: 1707.10557 | J5: 1408.09772 | S5: -299.00785
B6: Réalisé : | D6: 751.79423 | J6: 1105.93602 | S6: 354.14179
B7: PFA hors provisions : | D7: 2458.8998 | J7: 2514.03374 | S7: 55.13394
B8: Provisions : | D8: 164.4 | J8: 164.4 | S8: 0
B9: PFA : | D9: 2623.2998 | J9: 2678.43374 | S9: 55.13394
B10: CP autorisé : | J10: 2815.76995
B11: Ecart CP autorisé / PFA : | J11: 137.33621
A12: PFA : | C12: 2200A1 : MCO REGROUPEMENT - ANNEE1 | E12: Reste à faire
A13: du : | C13: 2022-02-28
E15: Heures DPE | AG15: Heures DI | BI15: Reste à faire | BU15: Engagé
A16: Projet | E16: PGE | G16: RTA | I16: EXP | K16: ETL | N16: ETE | Q16: ETO | T16: ETM | W16: GDC | Z16: QPG | AC16: DPE | AG16: PGI | AK16: ACH | AO16: QMC | AS16: IPC | AW16: SRX | BA16: SRD | BE16: DI | BI16: MO | BL16: A | BO16: S | BR16: F | BU16: A+S+F | BX16: CP
A17: 22001ATU1 | C17: MCO RGPT : Formation 20 ATU A et 2 ATU B | AW17: 616 | BE17: 616 | BI17: 42.504 | BR17: 23.1 | BX17: 65.604
A18: 22001DET1 | C18: MCO RGPT : DET 01 | BL18: 15.68 | BR18: 1.257 | BU18: 48.2272 | BX18: 65.1642
A19: 22001MNGT | C19: MCO RPGT - A1 - Management | Z19: 110.01 | AC19: 110.01 | AG19: 436 | AO19: 49 | AW19: 346.99 | BE19: 831.99 | BI19: 82.383 | BR19: 8 | BX19: 90.383
A20: 22001MTEC | C20: MCO RGPT - A1 - Maitrise technique | N20: 107.99 | T20: 12 | AC20: 119.99 | AK20: 3.01 | BE20: 3.01 | BI20: 13.24802 | BR20: 1.5 | BX20: 14.74802
A21: 22001RECA | C21: MCO RGPT - A1 - Maintenance corrective ss-traitant ECA
A22: 22001RPAC | C22: MCO RGPT - A1 - Maintenance corrective AC (Milan/Eryx/Fai) | AW22: 603.98 | BE22: 603.98 | BI22: 41.67604 | BL22: 17.92 | BU22: 0.93 | BX22: 60.52604
A23: 22001RPBM | C23: MCO RGPT - A1 - Maintenance corrective STC B2M | AW23: 724 | BE23: 724 | BI23: 49.95604 | BL23: 64.96 | BR23: 10 | BU23: 46.09382 | BX23: 171.00986
A24: 22001RPDX | C24: MCO RGPT - A1 - Maintenance corrective SET DX 166/407 et MILAN | AW24: 215.05 | BE24: 215.05 | BI24: 14.83498 | BL24: 32.48 | BR24: 40 | BX24: 87.31498
A25: 22001RPXL | C25: MCO RGPT - A1 - Maintenance corrective STC XL | AW25: 51 | BE25: 51 | BI25: 3.51899 | BL25: 1.67552 | BR25: 3 | BX25: 8.19451
A26: 22001RRDF | C26: MCO RGPT - A1 - Maintenance corrective ss-traitant RDF | BU26: 644.44296 | BX26: 644.44296
A27: 2200STOCK | C27: MCO - STOCK | N27: 96 | AC27: 96 | BI27: 10.368 | BL27: 25.76 | BR27: 2.2 | BU27: 120.3546 | BX27: 158.6826
A28: 2200TRECA | C28: MCO RGPT - Période Transitoire - Management et Maintenance corrective ECA
A29: 2200TRGDI | C29: MCO RGPT - Période Transitoire - Management et Maintenance corrective GDI | BU29: 2.40128 | BX29: 2.40128
A30: 2200TRRDF | C30: MCO RGPT - Période Transitoire - Mngt et Correctif RDF | BU30: 39.62627 | BX30: 39.62627
N31: 203.99 | T31: 12 | Z31: 110.01 | AC31: 326 | AG31: 436 | AK31: 3.01 | AO31: 49 | AW31: 2557.02 | BE31: 3045.03 | BI31: 258.48907 | BL31: 158.47552 | BR31: 89.057 | BU31: 902.07613 | BX31: 1408.09772
A32: Provisions | E32: PGE | G32: RTA | I32: EXP | K32: ETL | N32: ETE | Q32: ETO | T32: ETM | W32: GDC | Z32: QPG | AC32: DPE | AG32: PGI | AK32: ACH | AO32: QMC | AS32: IPC | AW32: SRX | BA32: SRD | BE32: DI | BI32: MO | BL32: A | BO32: S | BR32: F | BU32: A+S+F | BX32: CP
A33: 2200OPPOR | C33: MCO RGPT - OPPORTUNITES | BR33: -71.6 | BX33: -71.6
A34: 2200RISKS | C34: MCO RGPT - RISQUES | BR34: 236 | BX34: 236
BR35: 164.4 | BX35: 164.4
N36: 203.99 | T36: 12 | Z36: 110.01 | AC36: 326 | AG36: 436 | AK36: 3.01 | AO36: 49 | AW36: 2557.02 | BE36: 3045.03 | BI36: 258.48907 | BL36: 158.47552 | BR36: 253.457 | BU36: 902.07613 | BX36: 1572.49772
A37: PFA : | C37: 2200A1 : MCO REGROUPEMENT - ANNEE1 | E37: Budget / Réalisé / Synthèse
A38: du : | C38: 2022-02-28
L40: Budget | AA40: Réalisé cumulé N-1 | AP40: Réalisé N | BF40: Réalisé cumulé | BW40: Synthèse
A41: Projet | L41: Heures | O41: MO | R41: A+S+F | U41: CP | AA41: Heures | AD41: MO | AH41: A+S+F | AL41: CP | AP41: Heures | AT41: MO | AX41: A+S+F | BB41: CP | BF41: Heures | BK41: MO | BN41: A+S+F | BQ41: CP | BW41: RAF | BX41: Ecart
A42: 22001ATU1 | C42: MCO RGPT : Formation 20 ATU A et 2 ATU B | L42: 640.000002 | O42: 44.15999 | R42: 24 | U42: 68.15999 | BW42: 65.604 | BX42: 2.55599
A43: 22001DET1 | C43: MCO RGPT : DET 01 | R43: 66.017 | U43: 66.017 | AP43: 5.6 | AT43: 0.3864 | BB43: 0.3864 | BF43: 5.6 | BK43: 0.3864 | BQ43: 0.3864 | BW43: 65.1642 | BX43: 0.4664
A44: 22001MNGT | C44: MCO RPGT - A1 - Management | L44: 1657.999998 | O44: 141.636 | R44: 12.725 | U44: 154.361 | AA44: 607.8 | AD44: 51.4836 | AH44: 3.6757 | AL44: 55.1593 | AP44: 372 | AT44: 26.0538 | AX44: 8.17625 | BB44: 34.23005 | BF44: 979.8 | BK44: 77.5374 | BN44: 11.85195 | BQ44: 89.38935 | BW44: 90.383 | BX44: -25.41135
A45: 22001MTEC | C45: MCO RGPT - A1 - Maitrise technique | L45: 77.999999 | O45: 8.35201 | R45: 1.5 | U45: 9.85201 | AA45: 42.9 | AD45: 4.6332 | AL45: 4.6332 | AP45: 83.4 | AT45: 8.892 | BB45: 8.892 | BF45: 126.3 | BK45: 13.5252 | BQ45: 13.5252 | BW45: 14.74802 | BX45: -18.42121
A46: 22001RECA | C46: MCO RGPT - A1 - Maintenance corrective ss-traitant ECA | R46: 45.172 | U46: 45.172 | BX46: 45.172
A47: 22001RPAC | C47: MCO RGPT - A1 - Maintenance corrective AC (Milan/Eryx/Fai) | L47: 638.000003 | O47: 40.25203 | R47: 92.268 | U47: 132.52003 | AA47: 116 | AD47: 7.3428 | AH47: 3.014 | AL47: 10.3568 | AP47: 290.8 | AT47: 17.766 | AX47: 41.93835 | BB47: 59.70435 | BF47: 406.8 | BK47: 25.1088 | BN47: 44.95235 | BQ47: 70.06115 | BW47: 60.52604 | BX47: 1.93284
A48: 22001RPBM | C48: MCO RGPT - A1 - Maintenance corrective STC B2M | L48: 939.999995 | O48: 59.40799 | R48: 116.376 | U48: 175.78399 | AA48: 154.6 | AD48: 10.447 | AH48: 6.3493 | AL48: 16.7963 | AP48: 540.8 | AT48: 37.7286 | AX48: 2.09747 | BB48: 39.82607 | BF48: 695.4 | BK48: 48.1756 | BN48: 8.44677 | BQ48: 56.62237 | BW48: 171.00986 | BX48: -51.84824
A49: 22001RPDX | C49: MCO RGPT - A1 - Maintenance corrective SET DX 166/407 et MILAN | L49: 384 | O49: 24.26297 | R49: 74.05 | U49: 98.31297 | AP49: 66 | AT49: 3.4734 | AX49: 0.85156 | BB49: 4.32496 | BF49: 66 | BK49: 3.4734 | BN49: 0.85156 | BQ49: 4.32496 | BW49: 87.31498 | BX49: 6.67303
A50: 22001RPXL | C50: MCO RGPT - A1 - Maintenance corrective STC XL | L50: 99.999997 | O50: 6.31996 | R50: 5.662 | U50: 11.98196 | AA50: 0.6 | AD50: 0.0414 | AL50: 0.0414 | AP50: 78.2 | AT50: 5.3958 | BB50: 5.3958 | BF50: 78.8 | BK50: 5.4372 | BQ50: 5.4372 | BW50: 8.19451 | BX50: -1.64975
A51: 22001RRDF | C51: MCO RGPT - A1 - Maintenance corrective ss-traitant RDF | R51: 644.444 | U51: 644.444 | BW51: 644.44296 | BX51: 0.00104
A52: 2200STOCK | C52: MCO - STOCK | L52: 184.999999 | O52: 12.76503 | R52: 302 | U52: 314.76503 | AA52: 98 | AD52: 7.5828 | AH52: 113.55832 | AL52: 121.14112 | AP52: 59 | AT52: 4.3284 | AX52: 24.6003 | BB52: 28.9287 | BF52: 157 | BK52: 11.9112 | BN52: 138.15862 | BQ52: 150.06982 | BW52: 158.6826 | BX52: 6.01261
A53: 2200TRECA | C53: MCO RGPT - Période Transitoire - Management et Maintenance corrective ECA | R53: 84 | U53: 84 | AH53: 31.4048 | AL53: 31.4048 | BN53: 31.4048 | BQ53: 31.4048 | BX53: 52.5952
A54: 2200TRGDI | C54: MCO RGPT - Période Transitoire - Management et Maintenance corrective GDI | L54: 3036 | O54: 157.99997 | R54: 232 | U54: 389.99997 | AA54: 3013.3 | AD54: 176.8254 | AH54: 127.81011 | AL54: 304.63551 | AP54: 15.2 | AT54: 1.0488 | AX54: 11.24508 | BB54: 12.29388 | BF54: 3028.5 | BK54: 177.8742 | BN54: 139.05519 | BQ54: 316.92939 | BW54: 2.40128 | BX54: 70.6693
A55: 2200TRRDF | C55: MCO RGPT - Période Transitoire - Mngt et Correctif RDF | R55: 456 | U55: 456 | AA55: 7.2 | AD55: 0.4968 | AH55: 129.53095 | AL55: 130.02775 | AX55: 237.75763 | BB55: 237.75763 | BF55: 7.2 | BK55: 0.4968 | BN55: 367.28858 | BQ55: 367.78538 | BW55: 39.62627 | BX55: 48.58835
L56: 7658.999993 | O56: 495.15595 | R56: 2156.214 | U56: 2651.36995 | AA56: 4040.4 | AD56: 258.853 | AH56: 415.34318 | AL56: 674.19618 | AP56: 1511 | AT56: 105.0732 | AX56: 326.66664 | BB56: 431.73984 | BF56: 5551.4 | BK56: 363.9262 | BN56: 742.00982 | BQ56: 1105.93602 | BW56: 1408.09772 | BX56: 137.33621
A57: Provisions | L57: Heures | O57: MO | R57: A+S+F | U57: CP | AA57: Heures | AD57: MO | AH57: A+S+F | AL57: CP | AP57: Heures | AT57: MO | AX57: A+S+F | BB57: CP | BF57: Heures | BK57: MO | BN57: A+S+F | BQ57: CP | BW57: RAF | BX57: Ecart
A58: 2200OPPOR | C58: MCO RGPT - OPPORTUNITES | R58: -71.6 | U58: -71.6 | BW58: -71.6
A59: 2200RISKS | C59: MCO RGPT - RISQUES | R59: 236 | U59: 236 | BW59: 236
R60: 164.4 | U60: 164.4 | BW60: 164.4
L61: 7658.999993 | O61: 495.15595 | R61: 2320.614 | U61: 2815.76995 | AA61: 4040.4 | AD61: 258.853 | AH61: 415.34318 | AL61: 674.19618 | AP61: 1511 | AT61: 105.0732 | AX61: 326.66664 | BB61: 431.73984 | BF61: 5551.4 | BK61: 363.9262 | BN61: 742.00982 | BQ61: 1105.93602 | BW61: 1572.49772 | BX61: 137.33621

Sheet PASA N-1 (hidden)
A1: PFA : | B1: 2200A1 : MCO REGROUPEMENT - ANNEE1 | D1: Synthèse
A2: du : | B2: 2022-01-31
D4: PFA 202112 | J4: PFA du 31/1/2022 | S4: Ecart
B5: Reste à faire hors provisions : | D5: 1722.04081 | J5: 1707.10557 | S5: -14.93524
B6: Réalisé : | D6: 674.19618 | J6: 763.12105 | S6: 88.92487
B7: PFA hors provisions : | D7: 2396.23699 | J7: 2470.22662 | S7: 73.98963
B8: Provisions : | D8: 164.4 | J8: 164.4 | S8: 0
B9: PFA : | D9: 2560.63699 | J9: 2634.62662 | S9: 73.98963
B10: CP autorisé : | J10: 2815.76995
B11: Ecart CP autorisé / PFA : | J11: 181.14333
A12: PFA : | C12: 2200A1 : MCO REGROUPEMENT - ANNEE1 | E12: Reste à faire
A13: du : | C13: 2022-01-31
E15: Heures DPE | AG15: Heures DI | BI15: Reste à faire | BU15: Engagé
A16: Projet | E16: PGE | G16: RTA | I16: EXP | K16: ETL | N16: ETE | Q16: ETO | T16: ETM | W16: GDC | Z16: QPG | AC16: DPE | AG16: PGI | AK16: ACH | AO16: QMC | AS16: IPC | AW16: SRX | BA16: SRD | BE16: DI | BI16: MO | BL16: A | BO16: S | BR16: F | BU16: A+S+F | BX16: CP
A17: 22001ATU1 | C17: MCO RGPT : Formation 20 ATU A et 2 ATU B
A18: 22001DET1 | C18: MCO RGPT : DET 01 | BL18: 20.45344 | BR18: 1.257 | BU18: 44.3072 | BX18: 66.01764
A19: 22001MNGT | C19: MCO RPGT - A1 - Management | Z19: 129.99 | AC19: 129.99 | AG19: 576 | AO19: 65 | AW19: 457 | BE19: 1098 | BI19: 107.10899 | BR19: 10 | BX19: 117.10899
A20: 22001MTEC | C20: MCO RGPT - A1 - Maitrise technique | N20: 143.99 | T20: 36 | AC20: 179.99 | AK20: 4 | BE20: 4 | BI20: 19.824 | BR20: 1.5 | BX20: 21.324
A21: 22001RECA | C21: MCO RGPT - A1 - Maintenance corrective ss-traitant ECA
A22: 22001RPAC | C22: MCO RGPT - A1 - Maintenance corrective AC (Milan/Eryx/Fai) | AW22: 804.02 | BE22: 804.02 | BI22: 55.47598 | BL22: 42.56 | BU22: 6.73344 | BX22: 104.76942
A23: 22001RPBM | C23: MCO RGPT - A1 - Maintenance corrective STC B2M | AW23: 964 | BE23: 964 | BI23: 66.51596 | BL23: 67.2 | BR23: 25 | BU23: 33.376 | BX23: 192.09196
A24: 22001RPDX | C24: MCO RGPT - A1 - Maintenance corrective SET DX 166/407 et MILAN | AW24: 284.98 | BE24: 284.98 | BI24: 19.66502 | BL24: 32.48 | BR24: 40 | BX24: 92.14502
A25: 22001RPXL | C25: MCO RGPT - A1 - Maintenance corrective STC XL | AW25: 64 | BE25: 64 | BI25: 4.41599 | BL25: 2.79552 | BR25: 3 | BX25: 10.21151
A26: 22001RRDF | C26: MCO RGPT - A1 - Maintenance corrective ss-traitant RDF | BU26: 644.44296 | BX26: 644.44296
A27: 2200STOCK | C27: MCO - STOCK | N27: 126.01 | AC27: 126.01 | BI27: 13.608 | BL27: 33.6 | BR27: 2.2 | BU27: 122.22969 | BX27: 171.63769
A28: 2200TRECA | C28: MCO RGPT - Période Transitoire - Management et Maintenance corrective ECA
A29: 2200TRGDI | C29: MCO RGPT - Période Transitoire - Management et Maintenance corrective GDI | BU29: 9.97248 | BX29: 9.97248
A30: 2200TRRDF | C30: MCO RGPT - Période Transitoire - Mngt et Correctif RDF | BU30: 277.3839 | BX30: 277.3839
N31: 270 | T31: 36 | Z31: 129.99 | AC31: 435.99 | AG31: 576 | AK31: 4 | AO31: 65 | AW31: 2574 | BE31: 3219 | BI31: 286.61394 | BL31: 199.08896 | BR31: 82.957 | BU31: 1138.44567 | BX31: 1707.10557
A32: Provisions | E32: PGE | G32: RTA | I32: EXP | K32: ETL | N32: ETE | Q32: ETO | T32: ETM | W32: GDC | Z32: QPG | AC32: DPE | AG32: PGI | AK32: ACH | AO32: QMC | AS32: IPC | AW32: SRX | BA32: SRD | BE32: DI | BI32: MO | BL32: A | BO32: S | BR32: F | BU32: A+S+F | BX32: CP
A33: 2200OPPOR | C33: MCO RGPT - OPPORTUNITES | BR33: -71.6 | BX33: -71.6
A34: 2200RISKS | C34: MCO RGPT - RISQUES | BR34: 236 | BX34: 236
BR35: 164.4 | BX35: 164.4
N36: 270 | T36: 36 | Z36: 129.99 | AC36: 435.99 | AG36: 576 | AK36: 4 | AO36: 65 | AW36: 2574 | BE36: 3219 | BI36: 286.61394 | BL36: 199.08896 | BR36: 247.357 | BU36: 1138.44567 | BX36: 1871.50557
A37: PFA : | C37: 2200A1 : MCO REGROUPEMENT - ANNEE1 | E37: Budget / Réalisé / Synthèse
A38: du : | C38: 2022-01-31
L40: Budget | AA40: Réalisé cumulé N-1 | AP40: Réalisé N | BF40: Réalisé cumulé | BW40: Synthèse
A41: Projet | L41: Heures | O41: MO | R41: A+S+F | U41: CP | AA41: Heures | AD41: MO | AH41: A+S+F | AL41: CP | AP41: Heures | AT41: MO | AX41: A+S+F | BB41: CP | BF41: Heures | BK41: MO | BN41: A+S+F | BQ41: CP | BW41: RAF | BX41: Ecart
A42: 22001ATU1 | C42: MCO RGPT : Formation 20 ATU A et 2 ATU B | L42: 640.000002 | O42: 44.15999 | R42: 24 | U42: 68.15999 | BX42: 68.15999
A43: 22001DET1 | C43: MCO RGPT : DET 01 | R43: 66.017 | U43: 66.017 | AP43: 4 | AT43: 0.276 | BB43: 0.276 | BF43: 4 | BK43: 0.276 | BQ43: 0.276 | BW43: 66.01764 | BX43: -0.27664
A44: 22001MNGT | C44: MCO RPGT - A1 - Management | L44: 1657.999998 | O44: 141.636 | R44: 12.725 | U44: 154.361 | AA44: 607.8 | AD44: 51.4836 | AH44: 3.6757 | AL44: 55.1593 | AP44: 206 | AT44: 14.5728 | AX44: -0.0411 | BB44: 14.5317 | BF44: 813.8 | BK44: 66.0564 | BN44: 3.6346 | BQ44: 69.691 | BW44: 117.10899 | BX44: -32.43899
A45: 22001MTEC | C45: MCO RGPT - A1 - Maitrise technique | L45: 77.999999 | O45: 8.35201 | R45: 1.5 | U45: 9.85201 | AA45: 42.9 | AD45: 4.6332 | AL45: 4.6332 | AP45: 47.8 | AT45: 5.0832 | BB45: 5.0832 | BF45: 90.7 | BK45: 9.7164 | BQ45: 9.7164 | BW45: 21.324 | BX45: -21.18839
A46: 22001RECA | C46: MCO RGPT - A1 - Maintenance corrective ss-traitant ECA | R46: 45.172 | U46: 45.172 | BX46: 45.172
A47: 22001RPAC | C47: MCO RGPT - A1 - Maintenance corrective AC (Milan/Eryx/Fai) | L47: 638.000003 | O47: 40.25203 | R47: 92.268 | U47: 132.52003 | AA47: 116 | AD47: 7.3428 | AH47: 3.014 | AL47: 10.3568 | AP47: 136 | AT47: 8.6698 | AX47: 7.7302 | BB47: 16.4 | BF47: 252 | BK47: 16.0126 | BN47: 10.7442 | BQ47: 26.7568 | BW47: 104.76942 | BX47: 0.99381
A48: 22001RPBM | C48: MCO RGPT - A1 - Maintenance corrective STC B2M | L48: 939.999995 | O48: 59.40799 | R48: 116.376 | U48: 175.78399 | AA48: 154.6 | AD48: 10.447 | AH48: 6.3493 | AL48: 16.7963 | AP48: 274.8 | AT48: 19.0782 | AX48: 1.441 | BB48: 20.5192 | BF48: 429.4 | BK48: 29.5252 | BN48: 7.7903 | BQ48: 37.3155 | BW48: 192.09196 | BX48: -53.62347
A49: 22001RPDX | C49: MCO RGPT - A1 - Maintenance corrective SET DX 166/407 et MILAN | L49: 384 | O49: 24.26297 | R49: 74.05 | U49: 98.31297 | AP49: 48.2 | AT49: 2.0658 | AX49: 0.82768 | BB49: 2.89348 | BF49: 48.2 | BK49: 2.0658 | BN49: 0.82768 | BQ49: 2.89348 | BW49: 92.14502 | BX49: 3.27447
A50: 22001RPXL | C50: MCO RGPT - A1 - Maintenance corrective STC XL | L50: 99.999997 | O50: 6.31996 | R50: 5.662 | U50: 11.98196 | AA50: 0.6 | AD50: 0.0414 | AL50: 0.0414 | AP50: 52 | AT50: 3.588 | BB50: 3.588 | BF50: 52.6 | BK50: 3.6294 | BQ50: 3.6294 | BW50: 10.21151 | BX50: -1.85895
A51: 22001RRDF | C51: MCO RGPT - A1 - Maintenance corrective ss-traitant RDF | R51: 644.444 | U51: 644.444 | BW51: 644.44296 | BX51: 0.00104
A52: 2200STOCK | C52: MCO - STOCK | L52: 184.999999 | O52: 12.76503 | R52: 302 | U52: 314.76503 | AA52: 98 | AD52: 7.5828 | AH52: 113.55832 | AL52: 121.14112 | AP52: 46 | AT52: 3.4314 | AX52: 18.74305 | BB52: 22.17445 | BF52: 144 | BK52: 11.0142 | BN52: 132.30137 | BQ52: 143.31557 | BW52: 171.63769 | BX52: -0.18823
A53: 2200TRECA | C53: MCO RGPT - Période Transitoire - Management et Maintenance corrective ECA | R53: 84 | U53: 84 | AH53: 31.4048 | AL53: 31.4048 | BN53: 31.4048 | BQ53: 31.4048 | BX53: 52.5952
A54: 2200TRGDI | C54: MCO RGPT - Période Transitoire - Management et Maintenance corrective GDI | L54: 3036 | O54: 157.99997 | R54: 232 | U54: 389.99997 | AA54: 3013.3 | AD54: 176.8254 | AH54: 127.81011 | AL54: 304.63551 | AX54: 3.45884 | BB54: 3.45884 | BF54: 3013.3 | BK54: 176.8254 | BN54: 131.26895 | BQ54: 308.09435 | BW54: 9.97248 | BX54: 71.93314
A55: 2200TRRDF | C55: MCO RGPT - Période Transitoire - Mngt et Correctif RDF | R55: 456 | U55: 456 | AA55: 7.2 | AD55: 0.4968 | AH55: 129.53095 | AL55: 130.02775 | BF55: 7.2 | BK55: 0.4968 | BN55: 129.53095 | BQ55: 130.02775 | BW55: 277.3839 | BX55: 48.58835
L56: 7658.999993 | O56: 495.15595 | R56: 2156.214 | U56: 2651.36995 | AA56: 4040.4 | AD56: 258.853 | AH56: 415.34318 | AL56: 674.19618 | AP56: 814.8 | AT56: 56.7652 | AX56: 32.15967 | BB56: 88.92487 | BF56: 4855.2 | BK56: 315.6182 | BN56: 447.50285 | BQ56: 763.12105 | BW56: 1707.10557 | BX56: 181.14333
A57: Provisions | L57: Heures | O57: MO | R57: A+S+F | U57: CP | AA57: Heures | AD57: MO | AH57: A+S+F | AL57: CP | AP57: Heures | AT57: MO | AX57: A+S+F | BB57: CP | BF57: Heures | BK57: MO | BN57: A+S+F | BQ57: CP | BW57: RAF | BX57: Ecart
A58: 2200OPPOR | C58: MCO RGPT - OPPORTUNITES | R58: -71.6 | U58: -71.6 | BW58: -71.6
A59: 2200RISKS | C59: MCO RGPT - RISQUES | R59: 236 | U59: 236 | BW59: 236
R60: 164.4 | U60: 164.4 | BW60: 164.4
L61: 7658.999993 | O61: 495.15595 | R61: 2320.614 | U61: 2815.76995 | AA61: 4040.4 | AD61: 258.853 | AH61: 415.34318 | AL61: 674.19618 | AP61: 814.8 | AT61: 56.7652 | AX61: 32.15967 | BB61: 88.92487 | BF61: 4855.2 | BK61: 315.6182 | BN61: 447.50285 | BQ61: 763.12105 | BW61: 1871.50557 | BX61: 181.14333
